{"text_format":"1","workbook":"xlsx","n_sheets":2,"sheets":["PCRO-2025","PERITOS-2025"],"not_rendered":{"charts":0,"images":2,"macros":1,"external_links":0,"defined_names":5,"comments":0,"pivot_tables":0},"unopened":[],"bounds":{"document_bytes":16777216,"sheet_cells":100000,"rows_first":2000,"rows_last":500,"rows_between":2000,"halvings":0,"cell_chars":16384,"cell_head_chars":4096},"cells_cut":0,"cells_raw":0,"read":"whole","date_system":"1900"}

{"sheet":"PCRO-2025","index":0,"n_rows":65,"n_cols":7,"rows_kept":65,"cut":false,"hidden":false,"merged":[[40,0,41,6],[14,0,15,6],[24,0,25,6],[0,0,1,7],[60,0,61,6]]}
[" PERITOS CORRESPONSABLES EN DISEÑO ARQUITECTÓNICO 2025"]
[]
["No. ","Nombre","PROFESIÓN","CÉDULA PROF.","REGISTRO \nMUNICIPAL","TELÉFONO","E-MAIL"]
[{"$f":"ROW(A1)","v":1},"CABADA RUEDA ARTURO GABRIEL","ARQUITECTO",5941566,"PCRO-ARQ-CARA-011-12","22 99 58 52 18","arq.artucr@gmail.com"]
[{"$f":"ROW(A2)","v":2},"DUARTE BENITEZ IVAN ELOY","ARQUITECTO",2872818,"PCRO-ARQ-DUBI-017-16","22 92 41 91 57","duartebenitez@hotmail.com"]
[3,"ESPINOSA SILICEO FERNANDO","ARQUITECTO",3588762,"PCRO-ARQ-EISF-009-11","22 99 33 53 12","info@espinosasiliceo.com"]
[4,"GONZÁLEZ AGUILAR RAFAEL ABRAHAN","ARQUITECTO",4846412,"PCRO-ARQ-GOAR-014-14"," 22 91 54 69 06","raga_arq@hotmail.com"]
[5,"LADRÓN DE GUEVARA FÉRNANDEZ ÓSCAR ","ARQUITECTO",4801136,"PCRO-ARQ-LAFO-011-19","22 92 13 75 14 ","oscar_ladron@hotmail.com"]
[6,"LÓPEZ CASTRO FELIPE ARMANDO","ARQUITECTO",1096868,"PCRO-URB-LOCF-009-15","22 99 37 47 23","grupo_nova@hotmail.com"]
[7,"LÓPEZ TRACONIS VÍCTOR MANUEL","ARQUITECTO",2400578,"PCRO-ARQ-LOTV-003-11","22 92 58 81 72","vlopez@bracsa.com"]
[8,"MELO REYES RAFAEL","ARQUITECTO",9817447,"PCRO-ARQ-MERR-018-18","22 91 61 08 91 ","retoarquitectura.ver@gmail.com"]
[9,"MOTA NAVARRO ABRAHAM","ARQUITECTO",2421744,"PCRO-ARQ-MONA-002-11","22 91 50 60 89","perito.mpio@gmail.com"]
[]
[]
[" PERITOS CORRESPONSABLES EN DISEÑO URBANO 2025"]
[]
["No. ","Nombre","PROFESIÓN","CÉDULA PROF.","REGISTRO \nMUNICIPAL","TELÉFONO","E-MAIL"]
[1,"DUARTE BENITEZ IVAN ELOY","ARQUITECTO",2872818,"PCRO-URB-DUBI-010-16","22 92 41 91 57","duartebenitez@hotmail.com"]
[2,"HINOJOSA OSORIO JUAN DE DIOS","ARQUITECTO",3464372,"PCRO-URB-HIOJ-008-14","22 88 41 36 06","hiosso@hotmail.com"]
[3,"LADRÓN DE GUEVARA FÉRNANDEZ ÓSCAR","ARQUITECTO",4801136,"PCRO-URB-LAFO-019-19","22 92 13 75 14","oscar_ladron@hotmail.com"]
[4,"LÓPEZ TRACONIS VÍCTOR MANUEL","ARQUITECTO",2400578,"PCRO-URB-LOTV-002-11","22 92 58 81 72","vlopez@bracsa.com"]
[5,"MOTA NAVARRO  ABRAHAM","ARQUITECTO",2421744,"PCRO-URB-MONA-013-25","22 91 50 60 89","perito.mpio@gmail.com"]
[]
[]
[" PERITOS CORRESPONSABLES EN SEGURIDAD ESTRUCTURAL 2025"]
[]
["No. ","Nombre","PROFESIÓN","CÉDULA PROF.","REGISTRO \nMUNICIPAL","TELÉFONO","E-MAIL"]
[{"$f":"ROW(A1)","v":1},"BARRERA Y MUÑOZ  JOSÉ SIXTO LUIS ","INGENIERO",440472,"PCRO-EST-BAMS-008-11"," 22 91 72 84 83","jsixtobarrera@hotmail.com"]
[{"$f":"ROW(A2)","v":2},"CABALLERO PRIETO CARLOS AURELIO","INGENIERO",1176894,"PCRO-EST-CAPC-005-11","22 99 29 86 88","caredcaba@yahoo.com.mx"]
[3,"GARCÍA TORRES GILBERTO NICOLÁS","INGENIERO",1362530,"PCRO-EST-GATG-004-11"," 22 99 84 03 24","gilbertongarcia@yahoo.com.mx"]
[4,"GUERRERO HEREDIA EDMUNDO","INGENIERO",2511479,"PCRO-EST-GUHE-023-17","22 94 90 36 08","edmundo_guerrero@hotmail.com"]
[5,"HERNÁNDEZ RUIZ JOSÉ ARTURO","INGENIERO",267745,"PCRO-EST-HERA-013-12","22 99 22 40 24","hruiz99@yahoo.com.mx"]
[6,"HERNÁNDEZ SALAS ALFONSO AGUSTÍN","INGENIERO",768180,"PCRO-EST-HESA-003-11","22 92 83 08 47                          22 94 60 27 25","siaveracruz@hotmail.com"]
[7,"LIBREROS GONZÁLEZ JUAN MANUEL","INGENIERO",4118890,"PCRO-EST-LIGJ-029-21","22 92 83 04 60                           22 99 40 07 41","libreros_sice@hotmail.com"]
[8,"MUÑOZ FERNÁNDEZ RAFAEL","INGENIERO",2931547,"PCRO-EST-MUFR-020-15","22 99 84 28 04","rmf59@hotmail.com"]
[9,"ORTIZ MORALES ELIAS ARTURO","INGENIERO",10572284,"PCRO-EST-OIME-031-22","22 99 08 15 13","eaortizmorales@gmail.com"]
[10,"RIQUER TRUJILLO JUAN MANUEL","INGENIERO",1463839,"PCRO-ESTE-RITJ-010-11","22 91 08 18 63","riquerjuan@hotmail.com"]
[11,"SISQUELLA MORANTE JUAN ","INGENIERO",820512,"PCRO-EST-SIMJ-002-11","22 92 65 65 05","sisquellamorantejuan@gmail.com"]
[{"$f":"ROW(A13)","v":13},"SOTO SABINO JUAN DE LA CRUZ","INGENIERO",3492906,"PCRO-EST-SOSJ-006-11","22 99 84 24 74","juansotosabino@outlook.com"]
[]
[" PERITOS CORRESPONSABLES EN INSTALACIONES 2025"]
[]
["No. ","Nombre","PROFESIÓN","CÉDULA PROF.","REGISTRO \nMUNICIPAL","TELÉFONO","E-MAIL"]
[{"$f":"ROW(A1)","v":1},"ARELLANO LARA IGNACIO","INGENIERO",443144,"PCRO-INS-ARLI-021-18","22 91 19 14 14","ignacio_arellano@hotmail.com"]
[{"$f":"ROW(A2)","v":2},"BALTAZAR CRUZ DAVID","INGENIERO",3450690,"PCRO-INS-BACD-009-12","22 92 12 10 45","david_baltazar_75@hotmail.com"]
[3,"BRAVO SALAZAR JOSÉ MARÍA ","INGENIERO",5225017,"PCRO-INS-BASM-043-22 ","22 92 50 82 63","jbravo587@hotmail.com"]
[4,"CERVANTES ESPINOSA ULISES","INGENIERO",1219600,"PCRO-INS-CEEU-012-14","22 91 07 02 24","splomver@hotmail.com"]
[5,"HERVES HERVES JUAN MANUEL","INGENIERO",4827332,"PCRO-INS-HEHJ-016-18","22 93 21 25 58","manuelherves@hotmail.com"]
[6,"LUNA COSTALES ÁNGELES","INGENIERO",3173096,"PCRO-INS-LUCA-010-13","22 91 42 71 75       22 91 42 71 76","gerencia@aluna-ic.com"]
[7,"MENDOZA BARRÓN GUSTAVO","INGENIERO",4777855,"PCRO-INS-MEBG-029-21","22 94 85 10 45","gustavo@electromecanica.mx"]
[8,"OLARTE SANTIAGO JUAN MANUEL","INGENIERO",6543750,"PCRO-INS-OASJ-038-21","22 91 14 14 10","ing_juan_olarte@hotmail.com"]
[9,"OLMOS CABRERA OLIVER","INGENIERO",5165049,"PCRO-INS-OOCO-50-25","22 99 32 89 54                             22 91 16 89 00","oliver.oc19@gmail.com"]
[10,"PINILLA RODRÍGUEZ JUAN ANTONIO","INGENIERO",4806145,"PCRO-INS-PIRJ-014-17","22 99 81 22 81","ja_pinilla@yahoo.com.mx"]
[11,"SANCHEZ FLORES JOSE ALFREDO","INGENIERO",4756307,"PCRO-INS-SAFA-042-22","22 92 64 24 60","josealfredosanchez07@gmail.com"]
[12,"SALAS PRIETO OMAR GERARDO","INGENIERO",8565904,"PCRO-INS-SAPO-045-23","22 91 31 56 78","omar.gslp@outlook"]
[13,"ZÁRATE GERON GERARDO ","INGENIERO",1032927,"PCRO-INS-ZAGG-039-21","22 97 79 98 21","zarategeron@hotmail.com"]
[]
[]
[]
[]
[" PERITOS CORRESPONSABLES TOPOGRAFO GEODESTA 2025"]
[]
["No. ","Nombre","PROFESIÓN","CÉDULA PROF.","REGISTRO \nMUNICIPAL","TELÉFONO","E-MAIL"]
[1,"HERNANDEZ MARIN PEDRO MANUEL","INGENIERO",3307592,"PCTG-HEMP-001-16","22 92 94 68 06","pedro_52hdz@hotmail.com"]
[2,"MAYORAL LOPEZ ALEXIS DEL CARMEN","INGENIERO",8164338,"PCTG-MALA-003-25","22 91 06 02 86","alexis.mayoral86@gmail.com"]

{"sheet":"PERITOS-2025","index":1,"n_rows":99,"n_cols":8,"rows_kept":99,"cut":false,"hidden":false,"merged":[[0,0,1,7],[2,1,2,7]]}
["PADRÓN DE PERITOS RESPONSABLES DE OBRA 2025"]
[]
[null,"LISTADO DE PERITOS DE ACUERDO A SU FECHA DE PAGO"]
["No. ","No.","NOMBRE","PROFESIÓN","CÉDULA PROF.","REGISTRO \nMUNICIPAL","TELÉFONO","E-MAIL"]
[null,{"$f":"ROW(A1)","v":1},"DÍAZ MARTÍNEZ FRANCISCO JAVIER","ARQUITECTO",11937341,"PRO-DIMF-239-22","22 99 50 71 53","arquitecto_javierdiaz@outlook.com"]
[null,{"$f":"ROW(A2)","v":2}," AGUILAR RIVERA SERGIO","INGENIERO",1610898,"PRO-AURS-036-11","22 99 37 93 08     22 91 52 10 98","s_aguilarr@yahoo.com.mx"]
[null,{"$f":"ROW(A3)","v":3},"AGUIRRE VALENZUELA FRANCISCO ","INGENIERO",1362293,"PRO-AUVF-029-11","22 91 78 35 63","pacoaguirre60@yahoo.com"]
[null,4,"AJO ZENTENO ALEJANDRO","INGENIERO",3548113,"PRO-AOZA-118-12","22 99 37 55 82 \n22 91 34 93 20","alejandro@grupoaglio.com"]
[null,5,"ALARCÓN CONTRERAS IRMA PATRICIA","ARQUITECTA",9089617,"PRO-AACI-212-19","22 99 51 52 44","patty.alarcon.contreas@gmail.com"]
[null,6,"ÁLVAREZ MEZA JOSÉ JUAN","ARQUITECTO",4016340,"PRO-AAMJ-070-11","22 99 84 16 12","am-constructora@hotmail.com"]
[null,7,"ARANA SOTO DANIEL ARTURO","ARQUITECTO",10822057,"PRO-AASD-209-19","22 93 06 06 05","daas_daniel@hotmail.com"]
[null,8,"ATILANO RODRÍGUEZ JOSÉ","ARQUITECTO",654697,"PRO-ROXA-022-11","22 91 48 03 69","arq.joserodriguez@hotmail.com"]
[null,9,"BARRERA Y MUÑOZ JOSÉ SIXTO LUIS","INGENIERO",440472,"PRO-BAMS-048-11","  22 91  72  84  83","jsixtobarrera@hotmail.com"]
[null,10,"BLANCO VÁSQUEZ SÓSTENES NEFI","ARQUITECTO",10889788,"PRO-BAUS-243-22","22 82 04 50 47","arq_nefiblanco@hotmail.com"]
[null,11,"BONILLA CRUZ ARMANDO","ARQUITECTO",4861053,"PRO-BOCA-270-25","22 94 48 94 09 / 22 91 61 42 76","abonilla@dicob.com.mx"]
[null,12,"BUSTAMANTE ARRES RICARDO","INGENIERO",7765209,"PRO-BUAR-199-17","22 81 70 60 06","richard_jb_11@hotmail.com"]
[null,13,"CABADA RUEDA ARTURO GABRIEL","ARQUITECTO",5941566,"PRO-CARA-119-12","22 99 58 52 18","arq.artucr@gmail.com"]
[null,14,"CABALLERO PRIETO CARLOS AURELIO","INGENIERO",1176894,"PRO-CAPC-059-11","22 99 29 86 88","caredcaba@yahoo.com.mx"]
[null,15,"CABRERA MORALES PABLO","INGENIERO",5055813,"PRO-CAMP-187-16","27 41 01 30 43","ingpablocabrera@gmail.com"]
[null,16,"CASTRO DIAZ CARLOS ALBERTO","ARQUITECTO",3161122,"PRO-CADC-215-19","22 99 40 61 60","castrodiaz170672@gmail.com"]
[null,17,"CERDÁN HIERRO MARÍA DEL CARMEN","ARQUITECTA",5581965,"PRO-CEHC-206-19","22 91 69 19 19","arq_cerdanhierro@yahoo.com"]
[null,18,"CERVANTES ESPINOSA ULISES","INGENIERO",1219600,"PRO-CEEU-160-14","22 91 07 02 24","splomver@hotmail.com"]
[null,19,"CRUZ HERNÁNDEZ JOSUÉ","INGENIERO",10352525,"PRO-CUHJ-252-023","22 99 84 78 15","josuecruzhernandez71@gmail.com"]
[null,20,"DE LA PEÑA DIAZ CARLOS","INGENIERO",3567142,"PRO-PEDC-006-11","22 99 35 36 09","delapeñacarlos02@hotmail.com"]
[null,21,"DIAZ DELGADO YOUSSEF YAIR","ARQUITECTO",8777878,"PRO-DIDY-265-25","22 92 07 05 65","arq.youssef_diaz@hotmail.com"]
[null,22,"DÍAZ DOMÍNGUEZ CECILIA","INGENIERO",5740257,"PRO-DIDC-173-15","22 99 28 73 99\n 22 92 85 02 37","cecydiaz@live.com.mx"]
[null,23,"DÍAZ MARTÍNEZ FRANCISCO JAVIER","ARQUITECTO",11937341,"PRO-DIMF-239-22","22 99 50 71 53","arquitecto_javierdiaz@outlook.com"]
[null,24,"DÍAZ MELGAREJO LUZ KILLY","ARQUITECTA",5165730,"PRO-DIML-227-21","22 81 40 63 20","contacto.masm3@gmail.com"]
[null,25,"DUARTE BENITEZ IVAN ELOY","ARQUITECTO",2872818,"PTO-DUBI-175-15","22 92 41 91 57","duartebenitez@hotmail.com"]
[null,26,"ESCALANTE ROSALES DANIEL","ARQUITECTO",2932157,"PRO-EARD-232-21","22 93 62 00 82","dan_esro@yahoo.com.mx"]
[null,27,"ESPINO TORO EZEQUÍAS","ARQUITECTO",8788985,"PRO-EITE-205-19","22 99 27 00 87     22 92 07 07 06","ezequias.espino@ruba.com.mx"]
[null,28,"ESPINOSA SILICEO FERNANDO","ARQUITECTO",3588762,"PRO-EISF-060-11","22 99 33 53 12","info@espinosasiliceo.com"]
[null,29," ESTEVEZ GARRIDO BERTHA MARIA","INGENIERO",2511193,"PRO-EEGB-86-11","22 91 02 56 04","betty_estevez@hotmail.com"]
[null,30,"FERMAN SILVA JERÓNIMO","INGENIERO",1216993,"PRO-FESJ-031-11","22 99 53 46 67","fermansilva55@hotmail.com"]
[null,31,"GALVAN CORTES MARCO ANTONIO","INGENIERO",7474139,"PRO-GACM-224-20","22 93 12 06 62","marco13187@hotmail.com"]
[null,32,"GARCIA GARCIA SEVERO","INGENIERO",1920861,"PRO-GAGS-042-11","22 91 77 63 83","severoggarcia@hotmail.com"]
[null,33,"GARCÍA ANTONIO USIEL","INGENIERO",3902618,"PRO-GAAU-072-11","229 465 43 93","usielg@gmail.com"]
[null,34,"GARCÍA TORRES GILBERTO NICOLÁS","INGENIERO",1362530,"PRO-GATG-041-11","22 99 84 03 24","gilbertongarcia@yahoo.com.mx"]
[null,35,"GARZA MORA MANUEL","INGENIERO",1656975,"PRO-GAMM-001-11","22 92 46 94 19","garzamoramanuel@yahoo.com.mx"]
[null,36,"GAVITO SOSA AVELINO","ARQUITECTO",751892,"PRO-GASA-238-25"," 22 92 64 94 30","----------------------"]
[null,37,"GONZÁLEZ AGUILAR RAFAEL ABRAHAN","ARQUITECTO",4846412,"PRO-GOAR-105-11","22 91 54 69 06","raga_arq@hotmail.com"]
[null,38,"GONZÁLEZ RUIZ ALEJANDRO JOSÉ","ARQUITECTO",2284365,"PRO-GORA-233-21","22 99 29 11 07","algonza2010@gmail.com"]
[null,39,"GUERRA TORRES JORGE LUIS","INGENIERO",3397573,"PRO-GUTJ-009-11","22 99 22 55 53","jguerra@itsa.com.mx"]
[null,40,"GUERRERO HEREDIA EDMUNDO","INGENIERO",2511479,"PRO-GUHE-129-11","22 94 90 36 08","edmundo_guerrero@hotmail.com"]
[null,41,"HERNÁNDEZ AGUILAR RICARDO","ING. ARQ",477722,"PRO-HEAR-039-11","22 94 23 35 60","edisa_rha2@hotmail.com"]
[null,42,"HERNÁNDEZ BALTAZAR ANDRÉS","INGENIERO",771215,"PRO-HEBA-049-11","22 99 30 45 46 ","and_balta45@yahoo.com.mx"]
[null,43,"HERNÁNDEZ DÍAZ HEIDI","ARQUITECTO",3298696,"PRO-HEDH-259-24","22 91 53 10 27","arqui_interiores@hotmail.com"]
[null,44,"HERNÁNDEZ SALAS ALFONSO AGUSTÍN","INGENIERO",768180,"PRO-HESA-028-11","22 92 83 08 47      22 94 60 27 25","siaveracruz@hotmail.com"]
[null,45,"HERNANDEZ SOTO ADOLFO","ARQUITECTO",6959816,"PRO-HESA-269-25","22 81 42 80 52","biotrazo@gmail.com"]
[null,46,"HINOJOSA OSORIO JUAN DE DIOS ","ARQUITECTO",3464372,"PRO-HIOJ-153-13","22 88 41 36 06","hiosso@hotmail.com"]
[null,47,"IXTEPAN TURRENT MARIA DEL CARMEN","ARQUITECTO",1648680,"PRO-IETC-223-20","22 91 52 28 30","maxtepantorrent@hotmail.com"]
[null,48,"JIMÉNEZ CORIA XOCHILT","INGENIERO",4446595,"PRO-JICX-174-15","22 92 09 11 04","xjcoria@hotmail.com"]
[null,49,"JIMÉNEZ MARTÍNEZ MARÍA EUGENIA","ARQUITECTO",1549648,"PRO-JIME-164-14","22 91 46 21 27 \n 22 93 97 53 76","marygeljm@hotmail.com"]
[null,50,"LADRÓN DE GUEVARA FERNÁNDEZ ÓSCAR","ARQUITECTO",4801136,"PRO-LAFO-240-22","22 92 13 75 14","oscar_ladron@hotmail.com"]
[null,51,"LAGUNES ESTRADA JOSÉ JORGE","ARQUITECTO",6635533,"PRO-LAEJ-126-12","22 97 73 68 88","arqjorgelagunes@gmail.com"]
[null,52,"LEÓN HERNÁNDEZ LUIS ALBERTO","ARQUITECTO",5580059,"PRO-LEHL-158-14","27 21 18 18 58","luis_alberto_250@hotmail.com"]
[null,53,"LIBREROS GONZÁLEZ JUAN MANUEL","INGENIERO",4118890,"PRO-LIGJ-249-023","22 92 83 04 60   22 99 40 07 41","libreros_sice@hotmail.com"]
[null,54,"LICONA TORRES SELENI LAURA","ARQUITECTA",13285247,"PRO-LITS-253-023","22 91 68 68 69","torredelrey@outlook.es"]
[null,55,"LÓPEZ CASTRO FELIPE ARMANDO","ARQUITECTO",1096868,"PRO-LOCF-026-11","22 99 37 47 23","grupo_nova@hotmail.com"]
[null,56,"LÓPEZ TRACONIS VÍCTOR MANUEL","ARQUITECTO",2400578,"PRO-LOTV-014-11","22 92 58 81 72","vlopez@bracsa.com"]
[null,57,"LUNA COSTALES ÁNGELES","INGENIERO",3173096,"PRO-LUCA-080-11","22 91 42 71 75","gerencia@aluna-ic.com"]
[null,58,"LUNA HERRERA ALFONSO","INGENIERO",1305921,"PRO-LUHA-144-13","22 93 30 08 11","alfonsoluna451@yahoo.com.mx"]
[null,59,"MARQUINEZ SEEMANN JORGE","INGENIERO",3855107,"PRO-MASJ-055-11","22 91 33 91 94       22 91 21 03 46","tramites@construcciones-ms.com               jmarquinez@construcciones.ms.com"]
[null,60,"MARQUINEZ SEEMANN JOSÉ ANTONIO","INGENIERO",3659416,"PRO-MASA-054-11","22 91 33 91 94       22 91 21 03 46","tramites@construcciones-ms.com"]
[null,61,"MARTÍNEZ MENDOZA OSVALDO ","INGENIERO",4155055,"PRO-MXMO-046-11","22 91 28 17 62 ","m_proyectos@hotmail.com"]
[null,62,"MELO REYES RAFAEL","ARQUITECTO",9817447,"PRO-MERR-196-17","22 91 61 08 91","retoarquitectura.ver@gmail.com"]
[null,63,"MENA ALVAREZ ROMAN ULISES","ARQUITECTO",11322000,"PRO-MXAR-261-24","22 92 35 59 78","mearq54@gmail.com"]
[null,64,"MENDOZA ROBLES BERENICE ","ARQUITECTA",4201861,"PRO-MERB-222-20","22 91 15 99 96","bmendoza@modulo-edificacion.com"]
[null,65,"MIRAMÓN RAMÍREZ FRANCISCO","INGENIERO",3450297,"PRO-MIRF-017-11","22 92 94 15 21","paquitomiramon@gmail.com"]
[null,66," MORA LARA CARLOS TOMÁS","INGENIERO",1378834,"PRO-MOLC-051-11","22 92 65 61 44","construccionesmora@prodigy.net.mx"]
[null,{"$f":"ROW(A67)","v":67},"MIRANDA ROMERO ÓSCAR HERÓN","ARQUITECTO",45399885,"PRO-MIRO-241-22","22 81 65 04 21       22 81 08 36 78","copoc.ohm@gmail.com"]
[null,68,"MORALES MARTÍNEZ MELISSA","ARQUITECTA",4660775,"PRO-MOMM-235-21 ","22 91 54 42 44","arq.melissamorales@gmail.com"]
[null,69,"MORALES VERA FRANCISCO","INGENIERO",962102,"PRO-MOVF-229-25","22 99 15 35 97","fmoralesv@gmail.com"]
[null,70,"MOTA NAVARRO ABRAHAM","ARQUITECTO",2421744,"PRO-MONA-011-11","22 91 50 60 89","perito.mpio@gmail.com"]
[null,71,"MUÑOZ FERNÁNDEZ RAFAEL","INGENIERO",2931547,"PRO-MUFR-176-15","22 99 84 28 04","rmf59@hotmail.com"]
[null,72,"MUÑOZ MARINI GERARDO ITZAMNA","INGENIERO",8374354,"PRO-MUMG-245-023","22 92 52 97 70","itzamnamm83@hotmail.com"]
[null,73,"NOVELO GONZÁLEZ RAFAEL","INGENIERO",1057508,"PRO-NOGR-002-11","22 99 26 81 25","ingnovelo@hotmail.com"]
[null,74,"OLVERA OLIVARES  IXCHEL","ARQUITECTA",6850271,"PRO-OEOI-263-24","22 88 37 66 92","i.olvera@issmax.mx"]
[null,75,"PEREZ ALVAREZ JAIME","INGENIERO",3251396,"PRO-PEAJ-188-17","22 91 20 91 87 / 22 91 19 62 59","pereza60@hotmail.com"]
[null,76,"PEÑA NAVA ALBERTO","INGENIERO",465886,"PRO-PENA-043-11","22 91 34 75 06","saiver1983@gmail.com"]
[null,77,"PÉREZ LARA JOSÉ RAFAEL","INGENIERO",1049214,"PRO-PELR-067-11","22 99 84 10 38","lara59mx@yahoo.com.mx"]
[null,78,"POBLETE SALDAÑA RODOLFO","ARQUITECTO",5175690,"PRO-POSR-053-11","22 91 69 05 79","grupo_arquitectonica@hotmail.com"]
[null,79,"PRIETO ALONSO ELSA TERESITA","ARQUITECTA",1176708,"PRO-PIAE-130-12","22 93 46 06 86","elsaprietoalonso@hotmail.com"]
[null,80,"RAMÍREZ CAPO CARLOS EDUARDO","INGENIERO",3842941,"PRO-RACC-038-11","22 99 24 26 91 ","viviendaver@hotmail.com"]
[null,81,"RIQUER TRUJILLO JUAN MANUEL","INGENIERO",1463839,"PRO-RITJ-098-11","22 91 08 18 63","riquerjuan@hotmail.com"]
[null,82,"REYES ROMERO BRENDA ELIZABETH","ARQUITECTA",5837042,"PRO-RERB-244-22","22 81 93 38 59 ","guarderiasbrenda@gmail.com"]
[null,83,"ROMERO STRAFFON JOSÉ ARTURO","ARQUITECTO",4634101,"PRO-ROSA-004-11","22 91 44 74 82","straffon_pepe@hotmail.com"]
[null,84,"ROLDAN CUEVAS JUAN RENE","ARQUITECTO",4275395,"PRO-ROCL-255-023","22 95 29 34 47","juroldan@msev.gob.mx"]
[null,85,"RUIZ ROQUE JOSÉ LUIS","INGENIERO",2433411,"PRO-RURL-231-21","22 92 13 61 86","peperuiz64@hotmail.com"]
[null,86,"SALAS CONTRERAS LUCIANO","INGENIERO",1566900,"PRO-SACL-079-11","22 99 29 22 97","lucianosalascontreras@yahoo.com.mx"]
[null,87,"SANCHEZ FLORES JOSE ALFREDO","INGENIERO",4756307,"PRO-SAFA-178-16","22 92 64 24 60","josealfredosanchez07@gmail.com"]
[null,88,"SEDEÑO CASTILLO JOAQUIN ANTONIO","INGENIERO",706868125,"PRO-SECJ-116-12","22 91 74 89 38","lopse.proyectos@gmail.com"]
[null,89,"SISQUELLA MORANTE JUAN","INGENIERO",820512,"PRO-SIMJ-016-11","22 92 65 65 05","sisquellamorantejuan@gmail.com"]
[null,90,"SOTO SABINO JUAN DE LA CRUZ","INGENIERO",3492906,"PRO-SOSSJ-062-11","22 99 84 24 74","juansotosabino@outlook.com"]
[null,91,"SUÁREZ GOROZPE ÁNGEL MANUEL","ARQUITECTO",4561748,"PRO-SUGA-213-19","22 93 70 12 98 ","arquitecturasagitario7@gmail.com"]
[null,92,"TEPEPA RODRÍGUEZ SUSANA","INGENIERO",4444583,"PRO-TERS-207-19","22 92 65 50 54","susanatepepa.r@gmail.com"]
[null,93,"TINOCO CASTREJON SARA XOCHILT","ARQUITECTA",1736316,"PRO-TICS-069-11","22 99 15 02 24","saraxtinoco@gmail.com"]
[null,94,"TOBÓN RODRÍGUEZ FIDEL SANTIAGO","ARQUITECTO",11783988,"PRO-TORF-219-20","22 91 05 88 06\n 22 99 32 16 16","arqtoro63@hotmail.com"]
[null,95,"ZÚÑIGA AGUILERA LILIANA DEL ROSARIO","ARQUITECTA",3672188,"PRO-ZUAL-027-11"," 22 93 56 92 92","             arq_lilianazu@hotmail.com                      "]